fUST/lending_fUST_20250102
["ID","MTS","AMOUNT","RATE_DAILY","PERIOD"]
[347411597,1735773052960,-2174.38,0.00020821,3]
[347411598,1735773052969,-669.7,0.00020821,3]
[347411599,1735773052979,-892.51,0.00020821,3]
[347411600,1735773052988,-816.61,0.00020821,3]
[347411601,1735773052996,-500.0,0.00020821,3]
[347411602,1735773053006,-1168.42,0.00020821,3]
[347411603,1735773053015,-1073.64,0.00020821,3]
[347411604,1735773053024,-500.0,0.00020821,3]
[347411605,1735773053034,-500.0,0.00020821,3]
[347411606,1735773053043,-1001.66,0.00020821,3]
[347411607,1735773053053,-500.0,0.00020821,3]
[347411608,1735773053062,-162.17750412,0.00020821,3]
[347411609,1735773053071,-1335.74,0.00020821,3]
[347411610,1735773053080,-500.0,0.00020821,3]
[347411611,1735773053089,-501.45,0.00020821,3]
[347411612,1735773053098,-1684.0,0.00020821,3]
[347411613,1735773053107,-500.0,0.00020821,3]
[347411614,1735773053116,-3471.02,0.00020821,3]
[347411615,1735773053125,-975.35,0.00020821,3]
[347411616,1735773053135,-3993.68,0.00020821,3]
[347411617,1735773053144,-500.0,0.00020821,3]
[347411618,1735773053153,-1684.18,0.00020821,3]
[347411619,1735773053163,-544.05,0.00020821,3]
[347411620,1735773053172,-855.7,0.00020821,3]
[347411621,1735773053181,-674.42,0.00020821,3]
[347411622,1735773053190,-1336.09,0.00020821,3]
[347411623,1735773053202,-500.0,0.00020821,3]
[347411624,1735773053212,-500.0,0.00020821,3]
[347411625,1735773053222,-4145.12,0.00020821,3]
[347411626,1735773053231,-29365.7,0.00020821,3]
[347411627,1735773053241,-2528.71,0.00020821,3]
[347411628,1735773053250,-2655.82,0.00020821,3]
[347411629,1735773053259,-500.0,0.00020821,3]
[347411630,1735773053268,-500.0,0.00020821,3]
[347411631,1735773053278,-509.57,0.00020821,3]
[347411632,1735773053287,-1117.29,0.00020821,3]
[347411633,1735773053296,-543.6246357,0.00020821,3]
[347411634,1735773053573,-658.06,0.00020273,3]
[347411635,1735773053583,-658.06,0.00020547,3]
[347411636,1735773053592,-184.6253643,0.00020821,3]
[347411637,1735773053602,-500.0,0.00020821,3]
[347411638,1735773053612,-1480.38,0.00020821,3]
[347411639,1735773053622,-638.88,0.00020821,3]
[347411640,1735773053631,-903.87,0.00020821,3]
[347411641,1735773053641,-669.57,0.00020821,3]
[347411642,1735773053651,-1929.52,0.00020821,3]
[347411643,1735773053661,-520.23,0.00020821,3]
[347411644,1735773053671,-500.0,0.00020821,3]
[347411645,1735773053680,-946.69598551,0.00020821,3]
[347411646,1735773054297,1896.4017323,0.00025,120]
[347411647,1735773089873,447.81,0.00025,120]
[347411648,1735773105835,335.85,0.00025,120]
[347411649,1735773114284,671.71,0.00025,120]
[347411650,1735773129420,335.85,0.00025,120]
[347411658,1735773639627,585.0,0.00025,120]
[347411681,1735774112373,424.57030358,0.0001,7]
[347411722,1735774232056,-205.362529,0.00013973,2]
[347411724,1735774232066,-159.18658477,0.000187,2]
[347411726,1735774232076,-159.18658477,0.00018716,2]
[347411728,1735774232085,-159.18658477,0.00018732,2]
[347411730,1735774232095,-159.18658477,0.00018748,2]
[347411732,1735774232104,-159.18658477,0.00018764,2]
[347411733,1735774232113,-1786.11452832,0.000188,2]
[347411764,1735774237832,-3217.07616188,0.000188,2]
[347411765,1735774237841,-300.0,0.00018864,2]
[347411766,1735774237850,-5164.75756255,0.00018865,2]
[347411767,1735774237859,-182.362,0.00019072,2]
[347411768,1735774237868,-197.5841271,0.00019078,2]
[347411769,1735774237878,-1230.85460595,0.00019078,2]
[347411770,1735774237887,-513.8,0.00019176,2]
[347411771,1735774237896,-156.01,0.00019177,2]
[347411772,1735774237905,-542.93033063,0.00019177,2]
[347411773,1735774237914,-500.0,0.00019177,2]
[347411774,1735774237923,-500.0,0.00019177,2]
[347411775,1735774237933,-500.0,0.00019177,2]
[347411776,1735774237942,-192.2186128,0.00019177,2]
[347411777,1735774237951,-222.84207821,0.00019177,2]
[347411778,1735774237960,-500.0,0.00019177,2]
[347411779,1735774237969,-186.95033351,0.00019177,2]
[347411780,1735774237978,-500.0,0.00019177,2]
[347411781,1735774237986,-500.0,0.00019177,2]
[347411782,1735774237995,-500.0,0.00019177,2]
[347411783,1735774238004,-500.0,0.00019177,2]
[347411784,1735774238013,-350.57681199,0.00019177,2]
[347411785,1735774238022,-500.0,0.00019178,2]
[347411786,1735774238031,-500.0,0.00019178,2]
[347411787,1735774238040,-500.0,0.00019178,2]
[347411788,1735774238049,-500.0,0.00019178,2]
[347411789,1735774238058,-500.0,0.00019178,2]
[347411790,1735774238068,-314.74108468,0.00019178,2]
[347411791,1735774238077,-500.0,0.00019178,2]
[347411792,1735774238086,-500.0,0.00019178,2]
[347411793,1735774238095,-500.0,0.00019178,2]
[347411794,1735774238103,-500.0,0.00019178,2]
[347411795,1735774238112,-500.0,0.00019178,2]
[347411796,1735774238122,-500.0,0.00019178,2]
[347411797,1735774238130,-500.0,0.00019178,2]
[347411798,1735774238140,-613.30764603,0.00019178,2]
[347411799,1735774238149,-200.0,0.00019178,2]
[347411800,1735774238158,-500.0,0.00019178,2]
[347411801,1735774238167,-500.0,0.00019178,2]
[347411802,1735774238176,-500.0,0.00019178,2]
[347411803,1735774238186,-500.0,0.00019178,2]
[347411804,1735774238195,-500.0,0.00019178,2]
[347411805,1735774238204,-500.0,0.00019178,2]
[347411806,1735774238213,-500.0,0.00019178,2]
[347411807,1735774238222,-500.0,0.00019178,2]
[347411808,1735774238231,-500.0,0.00019178,2]
[347411809,1735774238240,-500.0,0.00019178,2]
[347411810,1735774238248,-500.0,0.00019178,2]
[347411811,1735774238257,-507.61964064,0.00019178,2]
[347411812,1735774238266,-500.0,0.00019178,2]
[347411813,1735774238275,-2936.13,0.00019178,2]
[347411814,1735774238284,-500.0,0.00019178,2]
[347411815,1735774238293,-500.0,0.00019178,2]
[347411816,1735774238302,-500.0,0.00019178,2]
[347411817,1735774238312,-500.0,0.00019178,2]
[347411818,1735774238322,-500.0,0.00019178,2]
[347411819,1735774238331,-500.0,0.00019178,2]
[347411820,1735774238341,-500.0,0.00019178,2]
[347411821,1735774238350,-500.0,0.00019178,2]
[347411822,1735774238359,-500.0,0.00019178,2]
[347411823,1735774238369,-500.0,0.00019178,2]
[347411824,1735774238378,-5713.77,0.00019178,2]
[347411825,1735774238387,-500.0,0.00019178,2]
[347411826,1735774238396,-500.0,0.00019178,2]
[347411827,1735774238405,-3303.36,0.00019178,2]
[347411828,1735774238415,-500.0,0.00019178,2]
[347411829,1735774238423,-567.35,0.00019178,2]
[347411830,1735774238434,-500.0,0.00019178,2]
[347411831,1735774238443,-500.0,0.00019178,2]
[347411832,1735774238452,-500.0,0.00019178,2]
[347411833,1735774238461,-500.0,0.00019178,2]
[347411834,1735774238470,-46.56124945,0.00019178,2]
[347411835,1735774238614,-453.43875055,0.00019178,2]
[347411836,1735774238628,-500.0,0.00019178,2]
[347411837,1735774238642,-500.0,0.00019178,2]
[347411838,1735774238655,-500.0,0.00019178,2]
[347411839,1735774238667,-500.0,0.00019178,2]
[347411840,1735774238680,-500.0,0.00019178,2]
[347411841,1735774238692,-500.0,0.00019178,2]
[347411842,1735774238704,-500.0,0.00019178,2]
[347411843,1735774238715,-628.41,0.00019178,2]
[347411844,1735774238727,-47.64313871,0.00019178,2]
[347411845,1735774238743,-452.35686129,0.00019178,2]
[347411846,1735774238755,-500.0,0.00019178,2]
[347411847,1735774238766,-500.0,0.00019178,2]
[347411848,1735774238778,-500.0,0.00019178,2]
[347411849,1735774238791,-500.0,0.00019178,2]
[347411850,1735774238805,-500.0,0.00019178,2]
[347411851,1735774238816,-500.0,0.00019178,2]
[347411852,1735774238828,-614.34,0.00019178,2]
[347411853,1735774238839,-500.0,0.00019178,2]
[347411854,1735774238851,-500.0,0.00019178,2]
[347411855,1735774238862,-697.73,0.00019178,2]
[347411856,1735774238874,-500.0,0.00019178,2]
[347411857,1735774238886,-500.0,0.00019178,2]
[347411858,1735774238898,-500.0,0.00019178,2]
[347411859,1735774238909,-485.82316475,0.00019178,2]
[347411860,1735774238923,-14.17683525,0.00019178,2]
[347411861,1735774238934,-500.0,0.00019178,2]
[347411862,1735774238944,-500.0,0.00019178,2]
[347411863,1735774238957,-500.0,0.00019178,2]
[347411864,1735774238966,-357.09431861,0.00019178,2]
[347411865,1735774238979,-500.0,0.00019178,2]
[347411866,1735774238990,-500.0,0.00019178,2]
[347411867,1735774239003,-500.0,0.00019178,2]
[347411868,1735774239015,-846.13,0.00019178,2]
[347411869,1735774239029,-188.3399742,0.00019178,2]
[347411870,1735774239042,-500.0,0.00019178,2]
[347411871,1735774239054,-1008.68,0.00019178,2]
[347411872,1735774239068,-500.0,0.00019178,2]
[347411873,1735774239080,-500.0,0.00019178,2]
[347411874,1735774239091,-500.0,0.00019178,2]
[347411875,1735774239101,-500.0,0.00019178,2]
[347411876,1735774239111,-613.68,0.00019178,2]
[347411877,1735774239122,-500.0,0.00019178,2]
[347411878,1735774239133,-500.0,0.00019178,2]
[347411879,1735774239143,-500.0,0.00019178,2]
[347411880,1735774239155,-104.89887194,0.00019178,2]
[347411881,1735774239171,-395.10112806,0.00019178,2]
[347411882,1735774239187,-761.23459194,0.00019178,2]
[347411883,1735774239203,-229.94540806,0.00019178,2]
[347411884,1735774239212,-666.84,0.00019178,2]
[347411885,1735774239222,-500.0,0.00019178,2]
[347411886,1735774239232,-94.55133562,0.00019178,2]
[347411887,1735774239247,-490.2451444,0.00019178,2]
[347412254,1735774243076,-67.37351998,0.00019178,2]
[347412257,1735774243087,-500.0,0.00019178,2]
[347412260,1735774243098,-584.88018895,0.00019178,2]
[347412263,1735774243109,-500.0,0.00019178,2]
[347412267,1735774243120,-427.93817485,0.00019178,2]
[347412788,1735774760193,160.0,0.00025,120]
[347412792,1735774803204,161.1,0.00014522,30]
[347412797,1735775306836,500.0,0.00025,120]
[347412798,1735775320091,500.0,0.00025,120]
[347412817,1735775431963,-206.725153,0.00013973,2]
[347412818,1735775431973,-7559.69097822,0.00019041,2]
[347412819,1735775431983,-197.58412709,0.00019077,2]
[347412820,1735775431993,-170.32844022,0.00019078,2]
[347412821,1735775432006,-300.0,0.000191,8]
[347412822,1735775432015,-300.0,0.00019132,2]
[347412823,1735775432024,-5164.75756255,0.00019133,2]
[347412824,1735775432033,-500.0,0.00019173,2]
[347412825,1735775432043,-500.0,0.00019173,2]
[347412826,1735775432052,-500.06326683,0.00019173,2]
[347412827,1735775432061,-500.0,0.00019173,2]
[347412828,1735775432070,-189.199,0.00019173,2]
[347412829,1735775432080,-500.0,0.00019177,2]
[347412830,1735775432090,-500.0,0.00019177,2]
[347412831,1735775432099,-414.12723889,0.00019177,2]
[347412832,1735775432108,-500.0,0.00019177,2]
[347412833,1735775432117,-500.0,0.00019177,2]
[347412834,1735775432127,-500.0,0.00019177,2]
[347412835,1735775432135,-500.0,0.00019177,2]
[347412836,1735775432144,-500.0,0.00019177,2]
[347412837,1735775432153,-393.93476615,0.00019177,2]
[347412838,1735775432162,-500.0,0.00019177,2]
[347412839,1735775432171,-500.0,0.00019177,2]
[347412840,1735775432180,-500.0,0.00019177,2]
[347412841,1735775432189,-500.0,0.00019177,2]
[347412842,1735775432198,-500.0,0.00019177,2]
[347412843,1735775432208,-500.0,0.00019177,2]
[347412844,1735775432229,-232.0325484,0.00019177,2]
[347412845,1735775432241,-500.0,0.00019177,2]
[347412846,1735775432250,-500.0,0.00019177,2]
[347412847,1735775432260,-500.0,0.00019177,2]
[347412849,1735775432271,-500.0,0.00019177,2]
[347412851,1735775432281,-500.0,0.00019177,2]
[347412853,1735775432291,-500.0,0.00019177,2]
[347412855,1735775432300,-500.0,0.00019177,2]
[347412857,1735775432311,-500.0,0.00019177,2]
[347412858,1735775432321,-500.0,0.00019177,2]
[347412859,1735775432331,-650.0,0.00019177,2]
[347412861,1735775432340,-500.0,0.00019177,2]
[347412863,1735775432350,-475.40489787,0.00019177,2]
[347412865,1735775432360,-500.0,0.00019177,2]
[347412867,1735775432370,-500.0,0.00019177,2]
[347412869,1735775432379,-500.0,0.00019177,2]
[347412871,1735775432389,-500.0,0.00019177,2]
[347412873,1735775432400,-500.0,0.00019177,2]
[347412875,1735775432409,-500.0,0.00019177,2]
[347412877,1735775432419,-500.0,0.00019177,2]
[347412879,1735775432429,-500.0,0.00019177,2]
[347412881,1735775432439,-500.0,0.00019177,2]
[347412883,1735775432448,-500.0,0.00019177,2]
[347412886,1735775432458,-500.0,0.00019177,2]
[347412888,1735775432468,-500.0,0.00019177,2]
[347412890,1735775432478,-500.0,0.00019177,2]
[347412892,1735775432488,-500.0,0.00019177,2]
[347412894,1735775432498,-500.0,0.00019177,2]
[347412896,1735775432508,-500.0,0.00019177,2]
[347412898,1735775432518,-500.0,0.00019177,2]
[347412900,1735775432527,-500.0,0.00019177,2]
[347412902,1735775432537,-500.0,0.00019177,2]
[347412904,1735775432547,-500.0,0.00019177,2]
[347412906,1735775432556,-500.0,0.00019177,2]
[347412908,1735775432566,-500.0,0.00019177,2]
[347412910,1735775432576,-500.0,0.00019177,2]
[347412912,1735775432586,-500.0,0.00019177,2]
[347412913,1735775432596,-500.0,0.00019177,2]
[347412914,1735775432607,-500.0,0.00019177,2]
[347412915,1735775432616,-500.0,0.00019177,2]
[347412916,1735775432626,-500.0,0.00019177,2]
[347412918,1735775432635,-500.0,0.00019177,2]
[347412920,1735775432645,-500.0,0.00019177,2]
[347412922,1735775432655,-500.0,0.00019177,2]
[347412924,1735775432665,-500.0,0.00019177,2]
[347412926,1735775432674,-500.0,0.00019177,2]
[347412928,1735775432685,-500.0,0.00019177,2]
[347412930,1735775432695,-500.0,0.00019177,2]
[347412931,1735775432705,-500.0,0.00019177,2]
[347412932,1735775432714,-500.0,0.00019177,2]
[347412933,1735775432723,-500.0,0.00019177,2]
[347412934,1735775432733,-500.0,0.00019177,2]
[347412935,1735775432744,-500.0,0.00019177,2]
[347412936,1735775432753,-500.0,0.00019177,2]
[347412937,1735775432763,-265.88746308,0.00019177,2]
[347412938,1735775432772,-500.0,0.00019177,2]
[347412939,1735775432782,-500.0,0.00019177,2]
[347412940,1735775432792,-500.0,0.00019177,2]
[347412941,1735775432802,-914.38959386,0.00019178,2]
[347412942,1735775432811,-5593.8005462,0.00019178,2]
[347412943,1735775432821,-500.0,0.00019178,2]
[347412944,1735775432831,-500.0,0.00019178,2]
[347412945,1735775432840,-500.0,0.00019178,2]
[347412946,1735775432850,-500.0,0.00019178,2]
[347412947,1735775432859,-500.0,0.00019178,2]
[347412948,1735775432869,-500.0,0.00019178,2]
[347412949,1735775432882,-500.0,0.00019178,2]
[347412950,1735775432891,-414.68898446,0.00019178,2]
[347412951,1735775432901,-500.0,0.00019178,2]
[347412952,1735775432911,-500.0,0.00019178,2]
[347412953,1735775432920,-500.0,0.00019178,2]
[347412954,1735775432930,-504.30856158,0.00019178,2]
[347412955,1735775432940,-500.27646746,0.00019178,2]
[347412956,1735775432949,-500.0,0.00019178,2]
[347412957,1735775432958,-500.0,0.00019178,2]
[347412958,1735775432968,-502.4294128,0.00019178,2]
[347412959,1735775432978,-500.0,0.00019178,2]
[347412960,1735775432988,-500.0,0.00019178,2]
[347412961,1735775432998,-500.0,0.00019178,2]
[347412962,1735775433010,-500.0,0.00019178,2]
[347412963,1735775433019,-507.02354621,0.00019178,2]
[347412964,1735775433029,-503.27991233,0.00019178,2]
[347412965,1735775433039,-500.0,0.00019178,2]
[347412966,1735775433049,-500.0,0.00019178,2]
[347412967,1735775433059,-242.60569351,0.00019178,2]
[347412968,1735775433072,-500.0,0.00019178,2]
[347412969,1735775433082,-500.0,0.00019178,2]
[347412970,1735775433092,-500.0,0.00019178,2]
[347412971,1735775433101,-500.0,0.00019178,2]
[347412972,1735775433111,-500.0,0.00019178,2]
[347412973,1735775433121,-500.0,0.00019178,2]
[347412974,1735775433131,-500.0,0.00019178,2]
[347412975,1735775433140,-500.0,0.00019178,2]
[347412976,1735775433150,-500.0,0.00019178,2]
[347412977,1735775433159,-500.0,0.00019178,2]
[347412978,1735775433169,-500.0,0.00019178,2]
[347412979,1735775433179,-500.0,0.00019178,2]
[347412980,1735775433189,-500.0,0.00019178,2]
[347412981,1735775433198,-500.0,0.00019178,2]
[347412982,1735775433209,-500.0,0.00019178,2]
[347412983,1735775433219,-500.0,0.00019178,2]
[347412984,1735775433228,-500.0,0.00019178,2]
[347412985,1735775433238,-500.0,0.00019178,2]
[347412986,1735775433248,-508.89144588,0.00019178,2]
[347412987,1735775433258,-500.0,0.00019178,2]
[347412988,1735775433268,-619.41033893,0.00019178,2]
[347412989,1735775433282,-500.0,0.00019178,2]
[347412990,1735775433292,-500.0,0.00019178,2]
[347412991,1735775433303,-500.0,0.00019178,2]
[347412992,1735775433312,-500.0,0.00019178,2]
[347412993,1735775433322,-500.0,0.00019178,2]
[347412994,1735775433333,-355.11894714,0.00019178,2]
[347413003,1735775437933,-144.88105286,0.00019178,2]
[347413004,1735775437943,-500.0,0.00019178,2]
[347413005,1735775437953,-500.0,0.00019178,2]
[347413006,1735775437965,-390.39504482,0.00019178,2]
[347413007,1735775437975,-500.0,0.00019178,2]
[347413008,1735775437984,-500.0,0.00019178,2]
[347413009,1735775437993,-500.0,0.00019178,2]
[347413010,1735775438005,-500.0,0.00019178,2]
[347413011,1735775438015,-500.0,0.00019178,2]
[347413012,1735775438024,-500.0,0.00019178,2]
[347413013,1735775438033,-500.0,0.00019178,2]
[347413014,1735775438043,-502.30633396,0.00019178,2]
[347413015,1735775438053,-500.0,0.00019178,2]
[347413016,1735775438062,-500.0,0.00019178,2]
[347413017,1735775438072,-500.0,0.00019178,2]
[347413018,1735775438083,-500.0,0.00019178,2]
[347413019,1735775438092,-500.0,0.00019178,2]
[347413020,1735775438102,-500.0,0.00019178,2]
[347413021,1735775438112,-500.0,0.00019178,2]
[347413022,1735775438121,-500.0,0.00019178,2]
[347413023,1735775438130,-637.61,0.00019178,2]
[347413024,1735775438140,-500.0,0.00019178,2]
[347413025,1735775438149,-500.0,0.00019178,2]
[347413026,1735775438159,-500.0,0.00019178,2]
[347413027,1735775438170,-500.0,0.00019178,2]
[347413028,1735775438179,-400.57267527,0.00019178,2]
[347413029,1735775438188,-500.0,0.00019178,2]
[347413030,1735775438198,-500.0,0.00019178,2]
[347413031,1735775438207,-500.0,0.00019178,2]
[347413032,1735775438218,-500.0,0.00019178,2]
[347413033,1735775438227,-500.0,0.00019178,2]
[347413034,1735775438236,-500.0,0.00019178,2]
[347413035,1735775438246,-500.0,0.00019178,2]
[347413036,1735775438255,-500.0,0.00019178,2]
[347413037,1735775438264,-500.0,0.00019178,2]
[347413038,1735775438274,-500.0,0.00019178,2]
[347413039,1735775438283,-500.0,0.00019178,2]
[347413040,1735775438292,-500.0,0.00019178,2]
[347413041,1735775438302,-500.0,0.00019178,2]
[347413042,1735775438311,-500.0,0.00019178,2]
[347413043,1735775438320,-493.07286545,0.00019178,2]
[347413044,1735775438329,-378.17776732,0.00019178,2]
[347413045,1735775438343,-121.82223268,0.00019178,2]
[347413046,1735775438352,-572.06182515,0.00019178,2]
[347413047,1735775438361,-500.0,0.00019178,2]
[347413048,1735775438370,-500.0,0.00019178,2]
[347413049,1735775438527,-500.0,0.00019178,2]
[347413050,1735775438537,-72.4884651,0.00019178,2]
[347413051,1735775438550,-427.5115349,0.00019178,2]
[347413052,1735775438559,-561.79509639,0.00019178,2]
[347413053,1735775438569,-500.0,0.00019178,2]
[347413054,1735775438578,-500.0,0.00019178,2]
[347413055,1735775438587,-500.0,0.00019178,2]
[347413056,1735775438597,-500.0,0.00019178,2]
[347413057,1735775438606,-500.0,0.00019178,2]
[347413058,1735775438615,-500.0,0.00019178,2]
[347413059,1735775438625,-502.07672888,0.00019178,2]
[347413060,1735775438635,-500.0,0.00019178,2]
[347413061,1735775438644,-500.0,0.00019178,2]
[347413062,1735775438653,-500.0,0.00019178,2]
[347413063,1735775438662,-500.0,0.00019178,2]
[347413064,1735775438672,-631.42,0.00019178,2]
[347413065,1735775438681,-500.0,0.00019178,2]
[347413066,1735775438691,-500.0,0.00019178,2]
[347413067,1735775438700,-500.0,0.00019178,2]
[347413068,1735775438709,-500.0,0.00019178,2]
[347413069,1735775438719,-500.0,0.00019178,2]
[347413070,1735775438728,-500.0,0.00019178,2]
[347413071,1735775438737,-500.0,0.00019178,2]
[347413072,1735775438747,-500.0,0.00019178,2]
[347413073,1735775438756,-500.0,0.00019178,2]
[347413074,1735775438765,-500.0,0.00019178,2]
[347413075,1735775438774,-500.0,0.00019178,2]
[347413076,1735775438783,-500.0,0.00019178,2]
[347413077,1735775438793,-500.0,0.00019178,2]
[347413078,1735775438802,-500.0,0.00019178,2]
[347413079,1735775438811,-500.0,0.00019178,2]
[347413080,1735775438821,-500.0,0.00019178,2]
[347413081,1735775438830,-500.0,0.00019178,2]
[347413082,1735775438839,-500.0,0.00019178,2]
[347413083,1735775438849,-500.0,0.00019178,2]
[347413084,1735775438858,-54.31181713,0.00019178,2]
[347413085,1735775438871,-190.4553285,0.00019178,2]
[347413086,1735775438880,-453.75380351,0.00019178,2]
[347413087,1735775438891,-46.24619649,0.00019178,2]
[347413088,1735775438900,-500.0,0.00019178,2]
[347413089,1735775438909,-500.0,0.00019178,2]
[347413090,1735775438919,-500.0,0.00019178,2]
[347413091,1735775438928,-515.97,0.00019178,2]
[347413092,1735775438937,-500.0,0.00019178,2]
[347413093,1735775438947,-500.0,0.00019178,2]
[347413094,1735775438956,-543.19130539,0.00019178,2]
[347413095,1735775438966,-500.0,0.00019178,2]
[347413096,1735775438975,-500.0,0.00019178,2]
[347413097,1735775438984,-500.0,0.00019178,2]
[347413098,1735775438994,-5448.99,0.00019178,2]
[347413099,1735775439008,-500.0,0.00019178,2]
[347413100,1735775439018,-2902.94,0.00019178,2]
[347413101,1735775439029,-500.0,0.00019178,2]
[347413102,1735775439039,-500.0,0.00019178,2]
[347413103,1735775439051,-852.55,0.00019178,2]
[347413104,1735775439062,-500.0,0.00019178,2]
[347413105,1735775439071,-500.0,0.00019178,2]
[347413106,1735775439080,-535.79504442,0.00019178,2]
[347413107,1735775439090,-500.0,0.00019178,2]
[347413108,1735775439099,-500.0,0.00019178,2]
[347413109,1735775439108,-500.0,0.00019178,2]
[347413110,1735775439117,-500.0,0.00019178,2]
[347413111,1735775439127,-500.0,0.00019178,2]
[347413112,1735775439136,-190.73532412,0.00019178,2]
[347413113,1735775439146,-500.0,0.00019178,2]
[347413114,1735775439155,-500.0,0.00019178,2]
[347413115,1735775439164,-500.0,0.00019178,2]
[347413116,1735775439173,-500.0,0.00019178,2]
[347413117,1735775439182,-500.0,0.00019178,2]
[347413118,1735775439192,-500.0,0.00019178,2]
[347413119,1735775439201,-500.0,0.00019178,2]
[347413120,1735775439214,-987.49,0.00019178,2]
[347413121,1735775439223,-500.0,0.00019178,2]
[347413122,1735775439232,-500.0,0.00019178,2]
[347413123,1735775439242,-500.0,0.00019178,2]
[347413124,1735775439252,-500.0,0.00019178,2]
[347413125,1735775439261,-500.0,0.00019178,2]
[347413126,1735775439271,-617.96,0.00019178,2]
[347413127,1735775439280,-617.96,0.00019178,2]
[347413128,1735775439289,-617.96,0.00019178,2]
[347413129,1735775439299,-617.96,0.00019178,2]
[347413130,1735775439308,-617.96,0.00019178,2]
[347413131,1735775439317,-617.96,0.00019178,2]
[347413132,1735775439327,-617.96,0.00019178,2]
[347413133,1735775439336,-617.96,0.00019178,2]
[347413134,1735775439345,-617.96,0.00019178,2]
[347413135,1735775439354,-617.96,0.00019178,2]
[347413136,1735775439364,-617.96,0.00019178,2]
[347413137,1735775439373,-617.96,0.00019178,2]
[347413138,1735775439382,-617.96,0.00019178,2]
[347413139,1735775439391,-336.0,0.00019178,2]
[347413140,1735775439401,-500.0,0.00019178,2]
[347413141,1735775439411,-1029.77,0.00019178,2]
[347413142,1735775439420,-858.09,0.00019178,2]
[347413143,1735775439429,-500.0,0.00019178,2]
[347413144,1735775439439,-500.0,0.00019178,2]
[347413145,1735775439448,-632.07,0.00019178,2]
[347413146,1735775439458,-500.0,0.00019178,2]
[347413148,1735775439467,-500.0,0.00019178,2]
[347413149,1735775439476,-500.0,0.00019178,2]
[347413150,1735775439485,-500.0,0.00019178,2]
[347413151,1735775439495,-500.0,0.00019178,2]
[347413152,1735775439504,-500.0,0.00019178,2]
[347413153,1735775439513,-500.0,0.00019178,2]
[347413154,1735775439522,-970.71,0.00019178,2]
[347413155,1735775439532,-585.27623402,0.00019178,2]
[347413156,1735775439541,-500.0,0.00019178,2]
[347413157,1735775439550,-500.0,0.00019178,2]
[347413158,1735775439559,-173.08191827,0.00019178,2]
[347413412,1735775443002,-326.91808173,0.00019178,2]
[347413413,1735775443013,-123.00841827,0.00019178,2]
[347413604,1735775446026,-536.88158173,0.00019178,2]
[347413606,1735775446036,-500.0,0.00019178,2]
[347413608,1735775446047,-500.0,0.00019178,2]
[347413610,1735775446057,-500.0,0.00019178,2]
[347413612,1735775446066,-500.0,0.00019178,2]
[347413614,1735775446075,-645.83,0.00019178,2]
[347413616,1735775446085,-3280.88,0.00019178,2]
[347413618,1735775446094,-500.0,0.00019178,2]